{"text_format":"1","workbook":"xlsx","n_sheets":2,"sheets":["STE_1. Seite","STE_2. Seite"],"not_rendered":{"charts":0,"images":5,"macros":1,"external_links":0,"defined_names":2,"comments":2,"pivot_tables":0},"unopened":[],"bounds":{"document_bytes":16777216,"sheet_cells":100000,"rows_first":2000,"rows_last":500,"rows_between":2000,"halvings":0,"cell_chars":16384,"cell_head_chars":4096},"cells_cut":0,"cells_raw":0,"read":"whole","date_system":"1900"}

{"sheet":"STE_1. Seite","index":0,"n_rows":57,"n_cols":9,"rows_kept":57,"cut":false,"hidden":false,"merged":[[46,7,46,8],[25,1,25,4],[26,1,26,4],[46,1,46,4],[36,1,36,5],[37,1,37,5],[38,1,38,5],[39,1,39,5],[56,1,56,8],[49,6,49,8],[49,3,49,4],[49,1,49,2],[54,1,54,4],[50,6,50,8],[51,6,51,8],[52,6,52,8],[53,6,53,8],[54,6,54,8],[50,1,50,4],[51,1,51,4],[52,1,52,4],[53,1,53,4],[4,3,4,4],[5,3,5,4],[23,3,23,4],[24,1,24,4],[15,1,16,8],[18,3,18,8],[23,1,23,2],[20,1,20,8],[21,1,21,8],[22,7,22,8],[27,1,27,4],[43,1,43,4],[44,1,44,4],[44,7,44,8],[32,7,32,8],[35,1,35,5],[34,1,34,2],[34,3,34,5],[28,1,28,4],[45,7,45,8],[42,1,42,4],[42,7,42,8],[45,1,45,4],[43,7,43,8]]}
[null,"Steuererklärung für die"]
[null,"Grundstückgewinnsteuer"]
[]
[]
[null," Verkauf Nr. (VO-Nr.)"]
[null," Liegenschaftsgemeinde "]
[]
[null,null,null,null,null,"Kantonale Steuerverwaltung"]
[null,null,null,null,null,"Grundstückgewinnsteuer"]
[null,null,null,null,null,"Postfach 1232"]
[null,null,null,null,null,"6431 Schwyz"]
[]
[]
[]
[]
[null,"Veräusserung von Beteiligungen an Immobiliengesellschaften"]
[]
[]
[null," Name der Gesellschaft:"]
[]
[null,"       Die Steuererklärung ist samt Beilagen vollständig ausgefüllt und unterzeichnet innert 30 Tagen seit der Veräusserung an die"]
[null,"       obige Adresse zuzustellen. Je Veräusserung ist eine Steuererklärung auszufüllen!"]
[null,null,null,null,null,null,"Total Erlös","Beteiligung"]
[null," Veräussernde Person",null," Name, Vorname, Adresse, PLZ, Wohnort",null,"Geburtsdatum","pro Person","Anteil ","von Total"]
[]
[null,null,null,null,null,null,null,null,{"$f":"IF(I25>0,I25,\"\")","v":""}]
[null,null,null,null,null,null,null,null,{"$f":"IF(I25>0,I25,\"\")","v":""}]
[null,null,null,null,null,null,null,null,{"$f":"IF(I25>0,I25,\"\")","v":""}]
[null,null,null,null,null,null,null,null,{"$f":"IF(I25>0,I25,\"\")","v":""}]
[]
[null,{"$f":"IF(AND(G31>0,H31<1),\"Bitte Beteiligungsanteile erfassen!\",IF(AND($H$31>0,$I$25=0),\"Bitte Gesamtanteile der Immobiliengesellschaft erfassen!\",\"\"))","v":""},null,null,null,"Total ",{"$f":"SUM(G25:G29)","v":0},{"$f":"SUM(H25:H29)","v":0},{"$f":"IF(I25>0,I25,\"\")","v":""}]
[]
[null,"     Telefonische Rückfragen können gerichtet werden an: "]
[]
[null," Erwerbende Person",null,"  Name, Vorname, Adresse, PLZ, Wohnort",null,null,"Geburtsdatum","Anteil ","von Total"]
[null,null,null,null,null,null,null,null,{"$f":"IF(I25>0,I25,\"\")","v":""}]
[null,null,null,null,null,null,null,null,{"$f":"IF(I25>0,I25,\"\")","v":""}]
[null,null,null,null,null,null,null,null,{"$f":"IF(I25>0,I25,\"\")","v":""}]
[null,null,null,null,null,null,null,null,{"$f":"IF(I25>0,I25,\"\")","v":""}]
[null,null,null,null,null,null,null,null,{"$f":"IF(I25>0,I25,\"\")","v":""}]
[]
[null," "]
[null," Grundstücke der Immobiliengesellschaft",null,null,null,"Gst-Gemeinde","GB-/KTN-Nr.","Fläche / Quote"]
[]
[]
[]
[]
[null," "]
[]
[null," Rückerstattungen",null," Person, Postcheck/Bank und Ort",null," Konto-Nummer"," lautend auf"]
[]
[]
[]
[]
[]
[]
[null,"      Gewinnberechnung, Unterzeichnung und allfällige Vollmachtserklärung siehe 2. Seite!"]

{"sheet":"STE_2. Seite","index":1,"n_rows":63,"n_cols":9,"rows_kept":63,"cut":false,"hidden":false,"merged":[[32,4,32,5],[30,1,30,3],[55,4,55,5],[40,2,40,8],[48,1,48,3],[49,1,49,3],[46,1,46,3],[50,1,50,3],[51,4,51,8],[46,4,50,8],[41,2,41,8],[44,1,45,3],[2,6,2,7],[24,1,24,4],[25,1,25,4],[32,1,32,2],[31,1,31,3],[22,1,22,4],[4,1,4,2],[17,1,17,2],[3,1,3,3],[5,1,5,2],[23,1,23,4],[38,1,38,2],[62,1,62,3],[55,1,55,3],[56,1,56,3],[57,1,57,3],[58,1,58,3],[61,1,61,3],[59,1,59,3],[60,1,60,3],[52,1,52,3],[53,1,53,3],[14,3,14,4],[15,3,15,4],[16,3,16,4],[17,3,17,4],[15,1,15,2],[14,1,14,2],[16,1,16,2],[47,1,47,3],[51,1,51,3],[44,4,45,8],[42,2,42,8],[33,1,33,7],[37,1,37,7],[39,1,39,8],[13,3,13,4],[11,3,11,4],[12,3,12,4],[12,1,12,2],[11,1,11,2],[13,1,13,2],[5,3,5,4],[6,3,6,4],[7,3,7,4],[10,3,10,4],[10,1,10,2],[9,1,9,4],[7,1,7,2],[6,1,6,2],[8,1,8,4]]}
[null,"GEWINNBERECHNUNG                             (Direkteingabe oder Übertrag ab Hilfsblatt / sonstigen Beilagen)"]
[]
[null,"1.","Veräusserungserlös",null,"Veräusserungsdatum:",null,"(Beteiligung)",null,"(Fr.)"]
[null,"Erlös für Beteiligung gemäss Vertrag",null,null,null,"(Übertrag von Vorderseite)",{"$f":"'STE_1. Seite'!H31","v":0},{"$f":"'STE_1. Seite'!I31","v":""},{"$f":"'STE_1. Seite'!G31","v":0}]
[null,null,null,null,null,null,null,{"$f":"IF(AND('STE_1. Seite'!H31>0,'STE_1. Seite'!I25=0),\"Bitte Gesamtanteile Immobiliengesellschaft erfassen (Seite 1)!\",\"\")","v":""}]
[null,"Fremdkapital (Buchwerte)",null,"Hypothekarische Belastung",null,null,{"$f":"'STE_1. Seite'!H31","v":0},{"$f":"'STE_1. Seite'!I31","v":""},{"$f":"IF(ISBLANK(F6),\"\",IF(ISTEXT(F6),\"Fehler; Texteingabe\",IF(AND($H$4<1,ISTEXT($H$4)),F6,ROUND(F6/H6*G6,0))))","v":""}]
[null,"Bitte akt. Bilanz beilegen!",null,"Sonstiges Fremdkapital",null,null,{"$f":"'STE_1. Seite'!H31","v":0},{"$f":"'STE_1. Seite'!I31","v":""},{"$f":"IF(ISBLANK(F7),\"\",IF(ISTEXT(F7),\"Fehler; Texteingabe\",IF(AND($H$4<1,ISTEXT($H$4)),F7,ROUND(F7/H7*G7,0))))","v":""}]
[null,null,null,null,null,null,{"$f":"'STE_1. Seite'!H31","v":0},{"$f":"'STE_1. Seite'!I31","v":""},{"$f":"IF(ISBLANK(F8),\"\",IF(ISTEXT(F8),\"Fehler; Texteingabe\",IF(AND($H$4<1,ISTEXT($H$4)),F8,ROUND(F8/H8*G8,0))))","v":""}]
[null,"Grundstückgewinnsteuer (sofern durch erwerbende Person bez.)",null,null,null,null,null,null,{"$f":"IF(ISBLANK(F9),\"\",F9)","v":""}]
[null,null,null,null,null,null,{"$f":"'STE_1. Seite'!H31","v":0},{"$f":"'STE_1. Seite'!I31","v":""},{"$f":"IF(ISBLANK(F10),\"\",IF(ISTEXT(F10),\"Fehler; Texteingabe\",IF(AND($H$4<1,ISTEXT($H$4)),F10,ROUND(F10/H10*G10,0))))","v":""}]
[null,"Nichtliegenschaftliche Aktiven",null,"Umlaufvermögen",null,null,{"$f":"'STE_1. Seite'!H31","v":0},{"$f":"'STE_1. Seite'!I31","v":""},""]
[null,null,null,"Einrichtungen",null,null,{"$f":"'STE_1. Seite'!H31","v":0},{"$f":"'STE_1. Seite'!I31","v":""},""]
[null,null,null,"Mobiliar",null,null,{"$f":"'STE_1. Seite'!H31","v":0},{"$f":"'STE_1. Seite'!I31","v":""},""]
[null,null,null,null,null,null,{"$f":"'STE_1. Seite'!H31","v":0},{"$f":"'STE_1. Seite'!I31","v":""},""]
[null,null,null,null,null,null,{"$f":"'STE_1. Seite'!H31","v":0},{"$f":"'STE_1. Seite'!I31","v":""},""]
[null,"Verkaufskosten",null,"Inserate",null,null,null,null,{"$f":"IF(ISBLANK(F16),\"\",F16)","v":""}]
[null,null,null,"Vermittlungsprovision",null,null,null,null,{"$f":"IF(ISBLANK(F17),\"\",F17)","v":""}]
[null,null,null,null,null,null,null,null,{"$f":"IF(ISBLANK(F18),\"\",F18)","v":""}]
[]
[null,"Massgebender Veräusserungserlös",null,null,null,null,null,"(Übertrag auf Ziff. 3)",{"$f":"SUM(I4:I10)-SUM(I11:I18)","v":0}]
[]
[null,"2.","Anlagekosten",null,null,null,null,null,"(Fr.)"]
[null,"Buchwert Grundstück per Veräusserung",null,null,null,null,{"$f":"'STE_1. Seite'!H31","v":0},{"$f":"'STE_1. Seite'!I31","v":""},{"$f":"IF(ISBLANK(F23),\"\",IF(ISTEXT(F23),\"Fehler; Texteingabe\",IF(AND($H$4<1,ISTEXT($H$4)),F23,ROUND(F23/H23*G23,0))))","v":""}]
[null,"Wiedereingebrachte Abschreibungen",null,null,null,null,{"$f":"'STE_1. Seite'!H31","v":0},{"$f":"'STE_1. Seite'!I31","v":""},{"$f":"IF(ISBLANK(F24),\"\",IF(ISTEXT(F24),\"Fehler; Texteingabe\",IF(AND($H$4<1,ISTEXT($H$4)),F24,ROUND(F24/H24*G24,0))))","v":""}]
[null,"Abzüglich im Buchwert enthaltene Unterhaltskosten",null,null,null,null,{"$f":"'STE_1. Seite'!H31","v":0},{"$f":"'STE_1. Seite'!I31","v":""},{"$f":"IF(ISBLANK(F25),\"\",IF(ISTEXT(F25),\"Fehler; Texteingabe\",IF(AND($H$4<1,ISTEXT($H$4)),F25,ROUND(F25/H25*G25,0))))","v":""}]
[null,null,null,null,null,null,{"$f":"'STE_1. Seite'!H31","v":0},{"$f":"'STE_1. Seite'!I31","v":""},{"$f":"IF(ISBLANK(F26),\"\",IF(ISTEXT(F26),\"Fehler; Texteingabe\",IF(AND($H$4<1,ISTEXT($H$4)),F26,ROUND(F26/H26*G26,0))))","v":""}]
[]
[null,"Massgebende Anlagekosten",null,null,null,null,null,"(Übertrag auf Ziff. 3)",{"$f":"SUM(I23:I24)+SUM(I26)-SUM(I25)","v":0}]
[]
[null,"3.","Grundstückgewinn",null,null,null,null,null,"(Fr.)"]
[null,"Massgebender Veräusserungserlös",null,null,null,null,null,"(Übertrag von Ziff. 1)",{"$f":"I20","v":0}]
[null,"Massgebende Anlagekosten",null,null,null,null,null,"(Übertrag von Ziff. 2)",{"$f":"I28","v":0}]
[null,"Freibetrag"]
[]
[null,{"$f":"IF(I35<0,\"Grundstückverlust\",\"Steuerpflichtiger Grundstückgewinn\")","v":"Steuerpflichtiger Grundstückgewinn"},null,null,null,null,null,null,{"$f":"SUM(I31)-SUM(I32:I33)+SUM(I34)","v":0}]
[]
[null,"Angaben zum Erwerb der Beteiligung"]
[null,"Wurde die Beteiligung an der Immobiliengesellschaft von einer Drittperson erworben?"]
[null,"Wenn ja, wann?",null,null,"      Bitte Kaufvertrag beilegen!"]
[null,"Wurden seit dem Gründungsdatum resp. Beteiligungserwerb zusätzliche Grundstücke durch die Immobiliengesellschaft erworben? Wenn ja, wann und welche (Liegenschaftsgemeinde, Kaufpreis, GB-/KTN-Nummer, Kurzbeschrieb)!"]
[]
[]
[]
[]
[null,"Bei Vertretung vollständige Adresse der vertretenden Person",null,null,"Vollständigkeitserklärung und allfällige Vollmacht"]
[]
[null,null,null,null,"Diese Steuererklärung ist vollständig und wahrheitsgetreu ausgefüllt. Zugleich wird die nebenstehend aufgeführte Person für diese Veräusserung mit der rechtsgültigen Vertretung vor den Steuerbehörden bevollmächtigt. Alle steuerlichen Zustellungen und Rückfragen sind an die Vertretung zu richten!"]
[]
[]
[]
[]
[null,null,null,null,"Bitte ankreuzen, falls die Rechnung nicht der Vertretung zuzustellen ist!"]
[]
[null,null,null,null,"Ort und Datum:",null,"Unterschrift veräussernde Person(en):"]
[]
[null,"Beilagen:"]
[null,"Kaufvertrag"]
[null,"Bilanz/Erfolgsrechnung per Veräusserung"]
[null,"Immobilienkonti seit Erwerb *)"]
[null,null,null,null,"Nicht im Immobilienkonti ent-"]
[null,null,null,null,"haltene Aufwendungen sind mittels"]
[null,null,null,null,"Rechnungen und Zahlungsbelegen"]
[null,"*) Ausweisend alle Zu- und Abgänge",null,null,"auszuweisen!"]